bitfinex/quotes_BTCUSD_20241119
["timestamp","ask_amount","ask_price","bid_price","bid_amount"]
[1732049607572,0.108163,92453.0,92435.0,0.06491]
[1732049607813,0.03704655,92452.0,92435.0,0.06491]
[1732049608165,0.108167,92450.0,92435.0,0.06491]
[1732049608266,0.03704655,92452.0,92436.0,0.10906255]
[1732049608501,0.03704655,92460.0,92454.0,0.064896]
[1732049608719,0.002,92487.0,92458.0,0.064894]
[1732049608720,0.01,92472.0,92458.0,0.064894]
[1732049608948,0.108142,92471.0,92458.0,0.064893]
[1732049609169,0.01,92468.0,92436.0,0.10906255]
[1732049609397,0.10906255,92467.0,92447.0,0.064901]
[1732049609649,0.01,92455.0,92443.0,0.064904]
[1732049609899,0.01,92447.0,92417.0,0.023]
[1732049610131,0.01,92447.0,92417.0,0.064922]
[1732049610132,0.10819,92430.0,92417.0,0.064922]
[1732049610356,0.216371,92434.0,92417.0,0.064922]
[1732049610357,0.108185,92434.0,92417.0,0.064922]
[1732049610615,0.1082,92421.0,92405.0,0.064931]
[1732049610827,0.03706988,92429.0,92407.0,0.0666386]
[1732049611047,0.108194,92426.0,92410.0,0.064927]
[1732049611271,0.03706988,92429.0,92410.0,0.064927]
[1732049611497,0.03706988,92429.0,92409.0,0.064928]
[1732049611715,0.216386,92427.0,92412.0,0.064926]
[1732049611947,0.03084982,92428.0,92410.0,0.064927]
[1732049612166,0.03706988,92429.0,92418.0,0.064922]
[1732049612384,0.1082,92421.0,92407.0,0.0017096]
[1732049612594,0.14188315,92421.0,92407.0,0.0017096]
[1732049613734,0.2509457,92421.0,92407.0,0.0017096]
[1732049613951,0.14188315,92421.0,92407.0,0.0017096]
[1732049614427,0.03368315,92421.0,92407.0,0.0017096]
[1732049614661,0.18670873,92442.0,92407.0,0.0017096]
[1732049614662,0.108184,92435.0,92422.0,0.064919]
[1732049614879,0.03995484,92444.0,92417.0,0.064922]
[1732049614880,0.118189,92431.0,92417.0,0.064922]
[1732049615101,0.118187,92432.0,92417.0,0.064922]
[1732049615346,0.32542855,92436.0,92417.0,0.064922]
[1732049615347,0.01,92434.0,92420.0,0.0657755]
[1732049615586,0.03509482,92431.0,92420.0,0.0008555]
[1732049615924,0.14328382,92431.0,92420.0,0.0008555]
[1732049616026,0.03995484,92430.0,92420.0,0.0008555]
[1732049616257,0.14814484,92430.0,92420.0,0.0008555]
[1732049616492,0.0547583,92429.0,92420.0,0.0008555]
[1732049616947,0.05961832,92428.0,92421.0,0.00182799]
[1732049617166,0.07504966,92428.0,92421.0,0.06492]
[1732049617407,0.01971009,92427.0,92421.0,0.064919]
[1732049617629,0.01971009,92426.0,92425.0,0.064917]
[1732049617870,0.04662527,92437.0,92422.0,0.00182418]
[1732049618087,0.01971098,92436.0,92430.0,0.064913]
[1732049618340,0.01971098,92436.0,92420.0,0.0008555]
[1732049618341,0.01971098,92435.0,92421.0,0.06492]
[1732049618564,0.108172,92445.0,92433.0,0.064911]
[1732049618785,0.01971996,92444.0,92428.0,0.064915]
[1732049619013,0.01,92452.0,92420.0,0.0008555]
[1732049619014,0.23606896,92443.0,92420.0,0.0008555]
[1732049619235,0.0017108,92434.0,92431.0,0.064912]
[1732049619462,0.0017108,92434.0,92420.0,0.0008555]
[1732049619463,0.0017108,92434.0,92433.0,0.064911]
[1732049619742,0.02143982,92434.0,92433.0,0.064911]
[1732049619940,0.02143982,92434.0,92433.0,0.001816]
[1732049620174,0.02143469,92434.0,92433.0,0.001816]
[1732049620400,0.02143469,92434.0,92426.0,0.064916]
[1732049620622,0.01972389,92433.0,92430.0,0.064913]
[1732049620857,0.01972389,92432.0,92431.0,0.064912]
[1732049621096,0.01972389,92432.0,92431.0,0.06673054]
[1732049621555,0.01972389,92432.0,92431.0,0.06673154]
[1732049622035,0.01972389,92432.0,92431.0,0.00181854]
[1732049622488,0.05131159,92432.0,92427.0,0.064916]
[1732049622716,0.0017108,92434.0,92431.0,0.06673154]
[1732049622939,0.0513375,92433.0,92432.0,0.064912]
[1732049623157,0.01974521,92433.0,92432.0,0.00181727]
[1732049623397,0.05135455,92433.0,92432.0,0.06672927]
[1732049623680,0.01975176,92433.0,92432.0,0.06672927]
[1732049623894,0.05135798,92433.0,92432.0,0.06672927]
[1732049624133,0.0017108,92434.0,92432.0,0.00181727]
[1732049624356,0.0513596,92433.0,92432.0,0.00181727]
[1732049624611,0.0513596,92433.0,92420.0,0.0008555]
[1732049624840,0.0017108,92434.0,92424.0,0.064917]
[1732049624841,0.0513596,92432.0,92424.0,0.064917]
[1732049625045,0.0513596,92431.0,92422.0,0.064919]
[1732049625261,0.0513596,92430.0,92425.0,0.00182615]
[1732049625494,0.0513596,92429.0,92425.0,0.064916]
[1732049625728,0.0513596,92428.0,92426.0,0.00182291]
[1732049625965,0.0017108,92434.0,92426.0,0.00182291]
[1732049625966,0.0513596,92427.0,92426.0,0.00182291]
[1732049626260,0.0513596,92427.0,92420.0,0.0008555]
[1732049626261,0.0513596,92427.0,92422.0,0.064919]
[1732049626496,0.0017108,92434.0,92428.0,0.064915]
[1732049626739,0.01977755,92433.0,92425.0,0.064917]
[1732049626955,0.05142175,92432.0,92429.0,0.00182108]
[1732049627169,0.05142175,92431.0,92423.0,0.064918]
[1732049627390,0.05142175,92430.0,92422.0,0.064919]
[1732049627614,0.05142175,92429.0,92420.0,0.0008555]
[1732049627844,0.04064318,92434.0,92420.0,0.0008555]
[1732049627845,0.05142175,92428.0,92427.0,0.064916]
[1732049628085,0.01977755,92428.0,92427.0,0.17397855]
[1732049628320,0.01977755,92428.0,92427.0,0.17577934]
[1732049629675,0.0017108,92434.0,92433.0,0.064911]
[1732049630152,0.0017108,92434.0,92433.0,0.06672221]
[1732049630808,0.0017108,92434.0,92433.0,0.17578476]
[1732049631937,0.0017108,92434.0,92433.0,0.19878476]
[1732049632374,0.01,92471.0,92433.0,0.14387376]
[1732049632644,0.0923,92475.0,92435.0,0.10906255]
[1732049632866,0.0923,92475.0,92467.0,0.064887]
[1732049633092,0.01,92475.0,92437.0,0.10906255]
[1732049633336,0.01,92475.0,92438.0,0.023]
[1732049633573,0.01,92475.0,92448.0,0.023]
[1732049633786,0.01,92483.0,92474.0,0.064883]
[1732049634003,0.01,92483.0,92449.0,0.10906255]
[1732049634004,0.01,92483.0,92449.0,0.11083427]
[1732049634234,0.04893238,92483.0,92450.0,0.023]
[1732049634476,0.04893238,92483.0,92473.0,0.064883]
[1732049634700,0.04893238,92483.0,92452.0,0.023]
[1732049634921,0.04893238,92483.0,92459.0,0.023]
[1732049635193,0.26,92493.0,92480.0,0.064878]
[1732049635446,0.01,92483.0,92470.0,0.064885]
[1732049635675,0.108156,92459.0,92434.0,0.064911]
[1732049635888,0.01,92469.0,92451.0,0.064899]
[1732049636104,0.108153,92462.0,92448.0,0.064901]
[1732049636353,0.108153,92462.0,92446.0,0.064902]
[1732049636354,0.108155,92460.0,92446.0,0.064902]
[1732049636599,0.108179,92439.0,92420.0,0.0008555]
[1732049636845,0.108176,92442.0,92421.0,0.10906255]
[1732049637089,0.01,92443.0,92421.0,0.10906255]
[1732049637090,0.01,92443.0,92430.0,0.064913]
[1732049637309,0.216353,92442.0,92421.0,0.10906255]
[1732049637526,0.04893238,92443.0,92431.0,0.064912]
[1732049637776,0.01,92433.0,92432.0,0.064912]
[1732049637983,0.01,92433.0,92421.0,0.10906255]
[1732049638197,0.01,92433.0,92432.0,0.064912]
[1732049639851,0.01,92433.0,92420.0,0.0008555]
[1732049639852,0.01,92421.0,92420.0,0.0008555]
[1732049640504,0.36619493,92421.0,92420.0,0.0008555]
[1732049640729,0.190311,92412.0,92378.0,0.0017112]
[1732049640964,0.58408228,92412.0,92378.0,0.0017112]
[1732049641217,0.58408228,92412.0,92383.0,0.064946]
[1732049641218,0.118211,92412.0,92383.0,0.064946]
[1732049641451,0.118211,92412.0,92386.0,0.064944]
[1732049641452,0.01,92412.0,92386.0,0.064944]
[1732049641705,0.01,92414.0,92403.0,0.064932]
[1732049641933,0.1,92417.0,92378.0,0.0017112]
[1732049641934,0.01,92417.0,92378.0,0.0017112]
[1732049642167,0.01,92412.0,92400.0,0.064934]
[1732049642403,0.01,92412.0,92400.0,0.064935]
[1732049642638,0.01,92412.0,92378.0,0.0017112]
[1732049642639,0.01,92414.0,92378.0,0.0017112]
[1732049642856,0.218215,92408.0,92378.0,0.0017112]
[1732049643083,0.32727755,92408.0,92380.0,0.06537959]
[1732049643301,0.36130371,92408.0,92380.0,0.06537959]
[1732049643506,0.36130371,92408.0,92381.0,0.064948]
[1732049643988,0.36130371,92408.0,92380.0,0.00043159]
[1732049644256,0.36130371,92408.0,92407.0,0.0008402]
[1732049644508,0.218232,92394.0,92380.0,0.00043159]
[1732049644727,0.51400328,92394.0,92380.0,0.00043159]
[1732049644975,0.54797044,92394.0,92380.0,0.00043159]
[1732049645229,0.58765717,92394.0,92380.0,0.00043159]
[1732049645483,0.43890789,92394.0,92380.0,0.00043159]
[1732049645694,0.68890789,92394.0,92380.0,0.00043159]
[1732049645913,0.218239,92388.0,92380.0,0.00043159]
[1732049646151,0.3654867,92388.0,92380.0,0.00043159]
[1732049646373,0.40317343,92388.0,92380.0,0.00043159]
[1732049646590,0.40326013,92388.0,92380.0,0.00043159]
[1732049646945,0.40526013,92388.0,92380.0,0.00043159]
[1732049647249,0.30702113,92388.0,92380.0,0.00043159]
[1732049647457,0.218247,92381.0,92380.0,0.00043159]
[1732049647681,0.32730955,92381.0,92380.0,0.00043159]
[1732049647890,0.40326813,92381.0,92380.0,0.00043159]
[1732049648118,0.118249,92379.0,92378.0,0.0017112]
[1732049648328,0.51402028,92379.0,92378.0,0.0017112]
[1732049648542,0.58997886,92379.0,92378.0,0.0017112]
[1732049649635,0.55020543,92379.0,92378.0,0.0017112]
[1732049650294,0.01,92379.0,92378.0,0.0017112]
[1732049650507,0.25,92388.0,92379.0,0.064949]
[1732049650748,0.01,92382.0,92378.0,0.0017112]
[1732049650961,0.01,92388.0,92380.0,0.064949]
[1732049651172,0.04977343,92382.0,92378.0,0.0017112]
[1732049651387,0.01,92382.0,92378.0,0.0017112]
[1732049651645,0.26,92382.0,92378.0,0.0017112]
[1732049652349,0.25,92382.0,92380.0,0.064948]
[1732049652562,0.01,92382.0,92378.0,0.0017112]
[1732049653003,0.108249,92379.0,92378.0,0.0017112]
[1732049653447,0.01,92380.0,92378.0,0.0017112]
[1732049653664,0.01,92379.0,92378.0,0.0017112]
[1732049653875,0.118249,92379.0,92378.0,0.0017112]
[1732049654615,0.01,92380.0,92378.0,0.0017112]
[1732049654826,0.15,92381.0,92378.0,0.0017112]
[1732049656135,0.108249,92379.0,92378.0,0.0017112]
[1732049656358,0.21731155,92379.0,92378.0,0.0017112]
[1732049656567,0.043282,92380.0,92378.0,0.0017112]
[1732049656795,0.25,92381.0,92378.0,0.0017112]
[1732049657012,0.004328,92379.0,92378.0,0.0017112]
[1732049657436,0.112577,92379.0,92378.0,0.0017112]
[1732049657891,0.004328,92379.0,92378.0,0.0017112]
[1732049658793,0.25,92385.0,92378.0,0.0017112]
[1732049659005,0.22163855,92379.0,92378.0,0.0017112]
[1732049659234,0.22363855,92379.0,92378.0,0.0017112]
[1732049659465,0.4234037,92379.0,92378.0,0.0017112]
[1732049659715,0.6734037,92379.0,92378.0,0.0017112]
[1732049660397,0.59663855,92379.0,92378.0,0.0017112]
[1732049660834,0.487576,92379.0,92378.0,0.0017112]
[1732049661336,0.254327,92379.0,92378.0,0.0017112]
[1732049661811,0.004327,92379.0,92378.0,0.0017112]
[1732049662037,0.25,92386.0,92378.0,0.0017112]
[1732049662386,0.25,92386.0,92378.0,0.0666602]
[1732049662486,0.25,92386.0,92378.0,0.0017112]
[1732049662704,0.043274,92388.0,92379.0,0.064949]
[1732049662940,0.25,92394.0,92380.0,0.064948]
[1732049663168,0.18670873,92389.0,92378.0,0.0017112]
[1732049663393,0.108249,92379.0,92378.0,0.0017112]
[1732049663862,0.29495773,92379.0,92378.0,0.0017112]
[1732049664084,0.44210239,92379.0,92378.0,0.0017112]
[1732049664305,0.47878543,92379.0,92378.0,0.0017112]
[1732049664749,0.72878543,92379.0,92378.0,0.0017112]
[1732049665047,0.65402028,92379.0,92378.0,0.0017112]
[1732049666157,0.40128604,92379.0,92378.0,0.0017112]
[1732049667524,0.15128604,92379.0,92378.0,0.0017112]
[1732049667987,0.04163358,92379.0,92378.0,0.0017112]
[1732049668226,0.25,92380.0,92378.0,0.0017112]
[1732049668682,0.0017116,92386.0,92378.0,0.0017112]
[1732049668936,0.216487,92384.0,92378.0,0.0017112]
[1732049669168,0.10906255,92385.0,92360.0,0.0098443]
[1732049669169,0.29497873,92361.0,92360.0,0.0098443]
[1732049669403,0.108276,92357.0,92342.0,0.0008556]
[1732049669623,0.108274,92358.0,92344.0,0.064974]
[1732049669847,0.216531,92366.0,92345.0,0.064973]
[1732049670119,0.216531,92366.0,92342.0,0.010794]
[1732049670120,0.216532,92365.0,92342.0,0.010794]
[1732049670348,0.10906255,92366.0,92342.0,0.0008556]
[1732049670579,0.18670873,92370.0,92347.0,0.0098239]
[1732049670580,0.10828,92353.0,92347.0,0.0098239]
[1732049671029,0.13997033,92353.0,92342.0,0.0008556]
[1732049671708,0.35828,92353.0,92342.0,0.0008556]
[1732049672168,0.38937157,92353.0,92342.0,0.0008556]
[1732049672691,0.35828,92353.0,92342.0,0.0008556]
[1732049672925,0.38937157,92353.0,92342.0,0.0008556]
[1732049673171,0.46734255,92353.0,92342.0,0.0008556]
[1732049673389,0.49843412,92353.0,92342.0,0.0008556]
[1732049673590,0.54248404,92353.0,92342.0,0.0008556]
[1732049674186,0.40232992,92353.0,92342.0,0.0008556]
[1732049675391,0.43342149,92353.0,92342.0,0.0008556]
[1732049675604,0.25,92353.0,92342.0,0.0008556]
[1732049675801,0.35828,92353.0,92342.0,0.0008556]
[1732049677052,0.46734255,92353.0,92342.0,0.0008556]
[1732049677269,0.46734255,92353.0,92314.0,0.0008563]
[1732049677270,1.83235088,92300.0,92237.0,0.0002]
[1732049677499,0.118385,92263.0,92237.0,0.0002]
[1732049678005,0.118415,92238.0,92237.0,0.0002]
[1732049678219,0.41418628,92238.0,92237.0,0.0002]
[1732049678448,0.57328628,92238.0,92237.0,0.0002]
[1732049678691,0.57328628,92238.0,92137.0,0.00012381]
[1732049678692,0.01,92219.0,92218.0,0.01041296]
[1732049678933,0.31577128,92219.0,92218.0,0.01041296]
[1732049679155,0.01,92202.0,92201.0,0.065075]
[1732049679385,0.01,92207.0,92206.0,0.065071]
[1732049679610,0.01,92207.0,92202.0,0.060074]
[1732049679860,0.01,92211.0,92207.0,0.06507]
[1732049680070,0.25,92219.0,92200.0,0.26742326]
[1732049680071,0.26,92219.0,92218.0,0.065063]
[1732049680541,0.01,92215.0,92214.0,0.065065]
[1732049680545,0.25,92219.0,92200.0,0.26742326]
[1732049680546,0.25,92219.0,92200.0,0.15180244]
[1732049680760,0.01,92237.0,92236.0,0.06505]
[1732049681000,0.01,92237.0,92233.0,0.065052]
[1732049681215,0.01,92237.0,92236.0,0.06505]
[1732049681458,0.01,92237.0,92235.0,0.060051]
[1732049681722,0.01,92237.0,92235.0,0.125101]
[1732049681980,0.01,92237.0,92235.0,0.060051]
[1732049682188,0.01,92237.0,92236.0,0.06505]
[1732049682852,0.01,92237.0,92235.0,0.060051]
[1732049683076,0.01,92237.0,92234.0,0.065051]
[1732049683278,0.01,92238.0,92218.0,0.0099978]
[1732049683515,0.01,92238.0,92231.0,0.065053]
[1732049683724,0.01,92236.0,92209.0,0.10906255]
[1732049683954,0.01,92233.0,92232.0,0.065053]
[1732049684164,0.01,92242.0,92232.0,0.065053]
[1732049684165,0.01,92237.0,92236.0,0.06505]
[1732049684628,0.01,92238.0,92237.0,0.054208]
[1732049685082,0.01,92238.0,92232.0,0.05421]
[1732049685578,0.01,92220.0,92219.0,0.0098499]
[1732049685791,0.01,92220.0,92219.0,0.0640679]
[1732049686001,0.01,92220.0,92196.0,0.0797]
[1732049686002,0.01,92233.0,92196.0,0.0797]
[1732049686214,0.009,92235.0,92224.0,0.054215]
[1732049686431,0.009,92232.0,92214.0,0.054221]
[1732049686637,0.29042859,92247.0,92214.0,0.054221]
[1732049686638,0.009,92236.0,92235.0,0.054209]
[1732049686848,0.009,92236.0,92204.0,0.054227]
[1732049686849,0.009,92230.0,92205.0,0.054226]
[1732049687075,0.009,92218.0,92217.0,0.054219]
[1732049687779,0.009,92228.0,92199.0,0.0099993]
[1732049688007,0.009,92228.0,92227.0,0.054214]
[1732049688293,0.009,92230.0,92229.0,0.054212]
[1732049688533,0.009,92231.0,92230.0,0.054212]
[1732049688760,0.009,92232.0,92231.0,0.054211]
[1732049689226,0.009,92218.0,92217.0,0.054219]
[1732049689461,0.009,92205.0,92203.0,0.054227]
[1732049689689,0.009,92203.0,92202.0,0.054228]
[1732049689917,0.009,92203.0,92195.0,0.054232]
[1732049689918,0.009,92201.0,92195.0,0.054232]
[1732049690147,0.009,92202.0,92200.0,0.20603144]
[1732049690375,0.009,92201.0,92200.0,0.20603144]
[1732049690614,0.009,92206.0,92195.0,0.108464]
[1732049690873,0.009,92210.0,92209.0,0.054224]
[1732049691757,0.259,92218.0,92210.0,0.108448]
[1732049691996,0.25,92218.0,92217.0,0.054219]
[1732049692222,0.161,92218.0,92217.0,0.054219]
[1732049692679,0.161,92218.0,92199.0,0.0099368]
[1732049692680,0.01,92230.0,92229.0,0.054212]
[1732049693133,0.009,92223.0,92201.0,0.054229]
[1732049693420,0.009,92221.0,92219.0,0.054218]
[1732049693648,0.259,92221.0,92220.0,0.054218]
[1732049694310,0.019,92210.0,92209.0,0.054224]
[1732049695183,0.019,92210.0,92191.0,0.0102753]
[1732049695409,0.009,92210.0,92208.0,0.054224]
[1732049695666,0.019,92210.0,92209.0,0.054224]
[1732049696190,0.009,92208.0,92207.0,0.054225]
[1732049696415,0.01,92210.0,92209.0,0.054224]
[1732049697095,0.019,92210.0,92209.0,0.054224]
[1732049697332,0.01,92214.0,92213.0,0.054222]
[1732049697794,0.009,92211.0,92210.0,0.00028845]
[1732049698027,0.00050099,92213.0,92210.0,0.05451245]
[1732049698251,0.00050099,92213.0,92212.0,0.05292478]
[1732049698485,0.00050099,92213.0,92212.0,0.05223327]
[1732049698692,0.00050099,92213.0,92212.0,0.04661998]
[1732049699582,0.00050099,92213.0,92212.0,0.15568253]
[1732049700282,9.9e-07,92213.0,92212.0,0.15568253]
[1732049700499,0.25,92247.0,92236.0,0.054208]
[1732049700713,0.019,92245.0,92236.0,0.054208]
[1732049701402,0.009,92241.0,92199.0,0.001]
[1732049701619,0.009,92241.0,92236.0,0.054208]
[1732049701842,0.009,92241.0,92227.0,0.054213]
[1732049702086,0.009,92226.0,92214.0,0.0098547]
[1732049702314,0.019,92215.0,92214.0,0.0640757]
[1732049702528,0.01,92213.0,92212.0,0.054222]
[1732049703137,0.01,92213.0,92212.0,0.04837094]
[1732049703523,0.01,92213.0,92212.0,0.37371094]
[1732049703812,0.12806255,92213.0,92212.0,0.32534]
[1732049704039,0.019,92213.0,92212.0,0.379562]
[1732049704263,0.01,92213.0,92212.0,0.3261974]
[1732049704499,0.019,92213.0,92212.0,0.3261974]
[1732049704723,0.01,92213.0,92212.0,0.3261974]
[1732049704929,0.127444,92213.0,92212.0,0.3261974]
[1732049705136,0.019,92213.0,92212.0,0.3261974]
[1732049705347,0.01,92213.0,92212.0,0.3261974]
[1732049705582,0.01,92220.0,92213.0,0.065066]
[1732049705799,0.01,92220.0,92212.0,0.320351]
[1732049705800,0.01,92220.0,92219.0,0.054218]
[1732049706039,0.25,92224.0,92223.0,0.054216]
[1732049706664,0.01,92226.0,92225.0,0.054215]
[1732049707393,0.0017144,92237.0,92232.0,0.05421]
[1732049707629,0.0017144,92237.0,92224.0,0.054215]
[1732049707842,0.0017144,92237.0,92212.0,0.50821355]
[1732049708072,0.0017144,92237.0,92226.0,0.054214]
[1732049708277,0.0017144,92237.0,92218.0,0.0099544]
[1732049708453,0.0017144,92237.0,92212.0,0.320351]
[1732049708799,0.10842,92234.0,92227.0,0.054213]
[1732049709005,0.108425,92230.0,92224.0,0.065058]
[1732049709201,0.108425,92230.0,92212.0,0.3302111]
[1732049709202,0.108432,92224.0,92213.0,0.065066]
[1732049709407,0.18773768,92225.0,92212.0,0.374573]
[1732049709540,0.18773768,92225.0,92214.0,0.33118]
[1732049709541,0.216863,92224.0,92214.0,0.33118]
[1732049709743,0.108442,92215.0,92214.0,0.33118]
[1732049710252,0.023,92222.0,92212.0,0.0008574]
[1732049710420,0.01,92251.0,92225.0,0.054215]
[1732049710421,0.18773768,92245.0,92225.0,0.054215]
[1732049710630,0.25,92236.0,92212.0,0.10991995]
[1732049710777,0.25,92236.0,92234.0,0.054209]
[1732049710987,0.25,92236.0,92235.0,0.054209]
[1732049711421,0.25,92236.0,92233.0,0.05421]
[1732049711658,0.25,92242.0,92217.0,0.0099813]
[1732049711867,0.25,92242.0,92236.0,0.054208]
[1732049712090,0.25,92242.0,92231.0,0.054211]
[1732049712376,0.358411,92242.0,92231.0,0.065054]
[1732049712595,0.358411,92242.0,92230.0,0.054211]
[1732049712596,0.25,92243.0,92236.0,0.054208]
[1732049713036,0.25,92243.0,92236.0,0.04186207]
[1732049713477,0.18773768,92245.0,92236.0,0.04186207]
[1732049713478,0.43773768,92245.0,92236.0,0.04186207]
[1732049714741,0.18773768,92245.0,92236.0,0.04186207]
[1732049715189,0.25,92250.0,92236.0,0.04186207]
[1732049715631,0.18773768,92255.0,92236.0,0.04186207]
[1732049715864,0.18773768,92253.0,92236.0,0.054208]
[1732049716084,0.18773768,92253.0,92205.0,0.1]
[1732049716085,0.12076467,92253.0,92252.0,0.054199]
[1732049716546,0.25,92262.0,92227.0,0.130112]
[1732049716762,0.25,92260.0,92234.0,0.0098561]
[1732049716975,0.35839,92260.0,92235.0,0.10906255]
[1732049717194,0.35839,92260.0,92255.0,0.054197]
[1732049717400,0.35839,92260.0,92253.0,0.065038]
[1732049717401,0.25,92260.0,92256.0,0.054196]
[1732049717616,0.25,92260.0,92255.0,0.054197]
[1732049717617,0.358389,92260.0,92255.0,0.054197]
[1732049717854,0.25,92260.0,92256.0,0.065036]
[1732049718082,0.25,92260.0,92258.0,0.054195]
[1732049718521,0.25,92260.0,92257.0,0.065035]
[1732049718741,0.25,92263.0,92259.0,0.054194]
[1732049719016,0.25,92263.0,92243.0,0.0453]
[1732049719228,0.25,92263.0,92258.0,0.065034]
[1732049719439,0.25,92263.0,92262.0,0.054193]
[1732049719658,0.29500062,92273.0,92259.0,0.065034]
[1732049719874,0.29500062,92273.0,92246.0,0.065043]
[1732049720110,0.18773768,92258.0,92228.0,0.0578]
[1732049720330,0.18773768,92258.0,92248.0,0.054201]
[1732049720557,0.18773768,92258.0,92229.0,0.10906255]
[1732049720558,0.108391,92258.0,92229.0,0.10906255]
[1732049720767,0.25,92261.0,92257.0,0.054196]
[1732049720999,0.25,92261.0,92260.0,0.054194]
[1732049721726,0.358372,92275.0,92268.0,0.054189]
[1732049721959,0.25,92275.0,92242.0,0.009908]
[1732049722192,0.25,92275.0,92252.0,0.065039]
[1732049722412,0.216749,92273.0,92264.0,0.054192]
[1732049722645,0.25,92272.0,92252.0,0.11891905]
[1732049723102,0.25,92272.0,92262.0,0.054193]
[1732049723312,0.25,92272.0,92259.0,0.065033]
[1732049723527,0.108373,92274.0,92252.0,0.11891905]
[1732049723742,0.25,92275.0,92252.0,0.11891905]
[1732049723972,0.25,92275.0,92269.0,0.054189]
[1732049724231,0.25,92275.0,92253.0,0.10906255]
[1732049724419,0.008272,92269.0,92268.0,0.054189]
[1732049724878,0.008272,92269.0,92268.0,0.16325155]
[1732049725136,0.25,92289.0,92288.0,0.054178]
[1732049725350,0.25,92289.0,92288.0,0.16324055]
[1732049725592,1.83235088,92300.0,92299.0,0.054171]
[1732049726301,1.83235088,92300.0,92299.0,0.16323355]
[1732049726795,1.83235088,92300.0,92299.0,0.24373355]
[1732049727289,1.83235088,92300.0,92299.0,0.25373355]
[1732049728435,1.83235088,92300.0,92285.0,0.0818]
[1732049728675,1.83235088,92300.0,92269.0,0.0499]
[1732049728676,0.18773768,92295.0,92269.0,0.1317]
[1732049728907,1.83235088,92300.0,92269.0,0.1317]
[1732049728908,1.83235088,92300.0,92282.0,0.10906255]
[1732049729132,0.108345,92298.0,92282.0,0.10906255]
[1732049729466,1.83235088,92300.0,92283.0,0.01]
[1732049729551,1.83235088,92300.0,92287.0,0.01]
[1732049729757,1.83235088,92300.0,92293.0,0.01]
[1732049729970,1.83406488,92300.0,92298.0,0.01]
[1732049730176,1.83406488,92300.0,92299.0,0.10906255]
[1732049730841,0.33416488,92300.0,92299.0,0.19896255]
[1732049731933,0.0017112,92306.0,92303.0,0.01]
[1732049732143,0.0017112,92306.0,92304.0,0.10906255]
[1732049733018,0.0017112,92306.0,92287.0,0.0099064]
[1732049733248,0.0017112,92306.0,92288.0,0.10906255]
[1732049733462,0.108346,92297.0,92288.0,0.10906255]
[1732049733675,0.108345,92298.0,92288.0,0.10906255]
[1732049733881,0.0017112,92306.0,92288.0,0.10906255]
[1732049734098,0.108343,92299.0,92288.0,0.10906255]
[1732049734335,0.0017112,92306.0,92288.0,0.10906255]
[1732049734594,0.10906255,92305.0,92271.0,0.0794]
[1732049734803,0.108371,92276.0,92272.0,0.10906255]
[1732049735015,0.18773768,92297.0,92272.0,0.10906255]
[1732049735223,0.108367,92279.0,92272.0,0.10906255]
[1732049735453,0.18773768,92297.0,92272.0,0.10906255]
[1732049735665,0.108367,92279.0,92272.0,0.10906255]
[1732049735909,0.25,92292.0,92272.0,0.10906255]
[1732049736125,0.18773768,92288.0,92257.0,0.0794]
[1732049736336,0.216715,92287.0,92258.0,0.10906255]
[1732049736548,0.108374,92273.0,92272.0,0.0098846]
[1732049736759,0.216724,92283.0,92258.0,0.10906255]
[1732049736974,0.216748,92273.0,92258.0,0.10906255]
[1732049737226,0.019362,92283.0,92258.0,0.11892935]
[1732049737434,0.25,92284.0,92258.0,0.11892935]
[1732049737435,0.108378,92270.0,92258.0,0.11892935]
[1732049737645,0.108378,92269.0,92258.0,0.11892935]
[1732049737879,0.25,92283.0,92258.0,0.10906255]
[1732049738067,0.25,92283.0,92266.0,0.01]
[1732049738280,0.25,92283.0,92267.0,0.10906255]
[1732049738754,0.108359,92286.0,92268.0,0.054189]
[1732049738987,0.04457323,92296.0,92269.0,0.10906255]
[1732049739208,0.21673,92281.0,92269.0,0.10906255]
[1732049739435,0.216694,92296.0,92269.0,0.11906255]
[1732049739662,0.18773768,92297.0,92269.0,0.10906255]
[1732049739916,0.108368,92278.0,92269.0,0.10906255]
[1732049740120,0.108347,92296.0,92269.0,0.10906255]
[1732049740369,0.108339,92303.0,92284.0,0.05418]
[1732049740579,0.18773768,92316.0,92285.0,0.10906255]
[1732049740580,0.108341,92301.0,92285.0,0.10906255]
[1732049740789,0.216672,92305.0,92285.0,0.10906255]
[1732049741218,0.108342,92300.0,92285.0,0.11904495]
[1732049741429,0.0017112,92306.0,92285.0,0.11904495]
[1732049741853,0.108349,92294.0,92285.0,0.11904495]
[1732049742052,0.0017112,92306.0,92285.0,0.0099824]
[1732049742053,0.108358,92286.0,92285.0,0.0099824]
[1732049742319,0.18773768,92286.0,92258.0,0.125]
[1732049742510,0.216734,92279.0,92259.0,0.10906255]
[1732049742737,0.216762,92267.0,92258.0,0.009849]
[1732049742945,0.18773768,92268.0,92258.0,0.009849]
[1732049742946,0.10839,92259.0,92258.0,0.009849]
[1732049743150,0.18773768,92259.0,92240.0,0.01]
[1732049743354,0.108391,92258.0,92241.0,0.10906255]
[1732049743581,0.216766,92265.0,92241.0,0.10906255]
[1732049743806,0.216765,92266.0,92242.0,0.108409]
[1732049743807,0.108385,92264.0,92242.0,0.108409]
[1732049744024,0.216765,92266.0,92243.0,0.10906255]
[1732049744474,0.108395,92256.0,92243.0,0.10906255]
[1732049744682,0.216771,92263.0,92243.0,0.10906255]
[1732049744950,0.18759031,92264.0,92243.0,0.10906255]
[1732049745166,0.108391,92259.0,92243.0,0.10906255]
[1732049745375,0.216776,92261.0,92243.0,0.10906255]
[1732049745624,0.5483,92309.0,92241.0,0.0098604]
[1732049745625,0.18759031,92254.0,92241.0,0.0098604]
[1732049745834,0.10841,92242.0,92241.0,0.0098604]